bitfinex/quotes_SOLUSD_20250424
["timestamp","ask_amount","ask_price","bid_price","bid_amount"]
[1745458633628,1.6034,149.9,149.87,13.70299492]
[1745458633927,1.33542827,149.89,149.87,13.70299492]
[1745458634324,1.33542827,149.89,149.88,13.70299492]
[1745458634523,1.6034,149.9,149.88,13.70299492]
[1745458634831,5.82030001,149.92,149.89,39.70299492]
[1745458635030,5.82030001,149.92,149.91,13.70299492]
[1745458635216,1.6034,149.94,149.91,13.70299492]
[1745458635421,1.6034,149.94,149.93,13.70299492]
[1745458636309,0.03,149.95,149.93,13.70299492]
[1745458636511,0.03,149.95,149.94,13.70299492]
[1745458636928,0.03,149.95,149.94,27.40598984]
[1745458637228,0.03,149.95,149.94,34.07532424]
[1745458637734,0.03,149.95,149.94,13.70299492]
[1745458640023,0.03,149.95,149.88,19.98341685]
[1745458640215,0.03,149.95,149.94,13.70299492]
[1745458643734,0.03,149.95,149.94,34.07532424]
[1745458643945,0.03,149.95,149.94,27.40598984]
[1745458644237,0.03,149.95,149.94,34.21748581]
[1745458645547,0.03,149.97,149.96,39.70299492]
[1745458647427,0.03,149.97,149.96,46.37143983]
[1745458648361,0.03,149.97,149.92,1.33339257]
[1745458648524,0.03,149.97,149.94,13.70299492]
[1745458648725,0.03,149.97,149.95,13.70299492]
[1745458649559,0.03,149.97,149.94,13.70299492]
[1745458649765,0.03,149.97,149.95,13.70299492]
[1745458650948,0.03,149.97,149.96,13.70299492]
[1745458651647,0.03,149.97,149.96,15.17851436]
[1745458652845,0.03,149.97,149.96,21.84695927]
[1745458655245,0.03,149.97,149.96,20.5136014]
[1745458656862,0.03,149.97,149.96,46.5136014]
[1745458657868,0.03,149.97,149.96,40.49656176]
[1745458658043,0.10340099,150.0,149.99,26.0]
[1745458658364,0.10340099,150.0,149.99,39.70299492]
[1745458659453,0.10340099,150.0,149.99,46.37010606]
[1745458661940,0.10340099,150.0,149.99,46.51226763]
[1745458662357,0.10340099,150.0,149.99,46.37010606]
[1745458663775,0.10340099,150.0,149.97,26.0]
[1745458663951,0.10340099,150.0,149.99,13.70299492]
[1745458665678,0.10340099,150.0,149.96,32.66838865]
[1745458665887,0.10340099,150.0,149.98,13.70299492]
[1745458666258,0.10340099,150.0,149.99,13.70299492]
[1745458667080,0.10340099,150.0,149.98,13.70299492]
[1745458668182,0.10340099,150.0,149.99,13.70299492]
[1745458670453,0.10340099,150.0,149.98,13.70299492]
[1745458671574,0.10340099,150.0,149.97,13.70299492]
[1745458671888,1.73500099,150.0,149.97,13.70299492]
[1745458672091,1.33542827,149.99,149.97,13.70299492]
[1745458672460,1.33542827,149.99,149.96,39.70299492]
[1745458673860,1.33542827,149.99,149.96,13.70299492]
[1745458675353,13.70299492,149.98,149.92,6.67004964]
[1745458675658,1.33542827,149.97,149.94,13.70299492]
[1745458676180,1.33542827,149.97,149.95,13.70299492]
[1745458676679,1.33542827,149.99,149.96,13.70299492]
[1745458676852,1.33542827,149.99,149.97,13.70299492]
[1745458677058,1.33542827,149.99,149.96,13.70299492]
[1745458677253,1.33542827,149.99,149.96,8.75835608]
[1745458678457,3.07042926,150.0,149.98,8.75835608]
[1745458678662,0.10340099,150.0,149.99,8.75835608]
[1745458680162,0.10340099,150.0,149.98,8.75835608]
[1745458680682,0.10340099,150.0,149.96,6.66844491]
[1745458680983,0.10340099,150.0,149.98,8.75835608]
[1745458681158,0.10340099,150.0,149.99,8.75835608]
[1745458683375,0.10340099,150.0,149.97,8.75835608]
[1745458683578,0.10340099,150.0,149.98,8.75835608]
[1745458684891,0.10340099,150.0,149.99,8.75835608]
[1745458685260,0.10340099,150.0,149.98,8.75835608]
[1745458685691,0.10340099,150.0,149.99,8.75835608]
[1745458688479,0.10340099,150.0,149.94,51.70631101]
[1745458688480,0.10340099,150.0,149.98,26.0]
[1745458688675,0.10340099,150.0,149.98,34.75835608]
[1745458688868,0.10340099,150.0,149.99,8.75835608]
[1745458689393,0.10340099,150.0,149.98,26.0]
[1745458689394,1.43882926,150.0,149.96,8.75835608]
[1745458690374,1.43882926,150.0,149.98,8.75835608]
[1745458690590,0.10340099,150.0,149.99,8.75835608]
[1745458695317,0.10340099,150.0,149.96,6.66832436]
[1745458695495,1.43882926,150.0,149.96,26.0]
[1745458695701,1.43882926,150.0,149.97,8.75835608]
[1745458696399,1.43882926,150.0,149.98,8.75835608]
[1745458696600,0.10340099,150.0,149.98,8.75835608]
[1745458696808,0.10340099,150.0,149.96,26.0]
[1745458697008,0.10340099,150.0,149.97,8.75835608]
[1745458698317,0.10340099,150.0,149.96,8.75835608]
[1745458698995,0.10340099,150.0,149.97,8.75835608]
[1745458700017,6.77012689,150.0,149.97,8.75835608]
[1745458700218,1.33542827,149.99,149.97,8.75835608]
[1745458700517,1.33542827,149.99,149.96,8.75835608]
[1745458701018,1.33542827,149.99,149.93,32.66959295]
[1745458701314,1.33542827,149.99,149.94,8.75835608]
[1745458701517,10.09378435,149.99,149.94,8.75835608]
[1745458701716,1.33542827,149.99,149.95,8.75835608]
[1745458701896,1.33542827,149.99,149.96,8.75835608]
[1745458702098,1.33542827,149.99,149.97,8.75835608]
[1745458702424,1.43882926,150.0,149.97,8.75835608]
[1745458703215,16.86393145,150.0,149.96,8.75835608]
[1745458703426,16.86393145,150.0,149.95,8.75835608]
[1745458704422,1.43882926,150.0,149.96,8.75835608]
[1745458704911,1.43882926,150.0,149.97,8.75835608]
[1745458705320,8.10568123,150.0,149.93,26.0]
[1745458705524,8.10568123,150.0,149.96,8.75835608]
[1745458705726,16.86403731,150.0,149.96,8.75835608]
[1745458705918,8.10568123,150.0,149.96,8.75835608]
[1745458706418,16.86403731,150.0,149.95,8.75835608]
[1745458706837,16.86403731,150.0,149.92,6.67007199]
[1745458706838,8.75835608,149.99,149.92,6.67007199]
[1745458707001,1.33542827,149.98,149.94,8.75835608]
[1745458708322,8.0030671,149.98,149.94,8.75835608]
[1745458708623,16.76142318,149.98,149.93,8.75835608]
[1745458709118,8.75835608,149.96,149.91,26.063]
[1745458709427,1.33542827,149.95,149.91,34.82135608]
[1745458709729,1.33542827,149.95,149.91,26.063]
[1745458709922,1.33542827,149.95,149.92,8.75835608]
[1745458710626,8.00435378,149.95,149.92,8.75835608]
[1745458711528,1.33542827,149.95,149.92,8.75835608]
[1745458713322,8.00433973,149.95,149.91,34.82135608]
[1745458714113,1.33542827,149.95,149.92,8.75835608]
[1745458714331,1.33542827,149.95,149.91,26.063]
[1745458714817,1.33542827,149.95,149.92,8.75835608]
[1745458715232,1.33542827,149.95,149.92,26.0]
[1745458715427,8.00447186,149.95,149.91,8.82135608]
[1745458717036,8.00447186,149.95,149.92,8.75835608]
[1745458717335,16.76282794,149.95,149.91,0.063]
[1745458719207,8.00447186,149.95,149.91,0.063]
[1745458719410,8.75835608,149.93,149.91,0.063]
[1745458719635,1.33542827,149.92,149.91,0.063]
[1745458720342,10.09378435,149.92,149.91,0.063]
[1745458721442,16.76400846,149.92,149.91,0.063]
[1745458727061,24.42950846,149.92,149.91,0.063]
[1745458727364,43.22131889,149.92,149.91,0.063]
[1745458728239,69.22131889,149.92,149.91,0.063]
[1745458729250,69.07915732,149.92,149.91,0.063]
[1745458729448,16.76400846,149.92,149.91,0.063]
[1745458730134,1.33542827,149.92,149.91,0.063]
[1745458730363,16.76365834,149.93,149.91,0.063]
[1745458730662,8.75835608,149.92,149.91,0.063]
[1745458732373,34.00530226,149.93,149.91,0.063]
[1745458732677,8.75835608,149.92,149.91,0.063]
[1745458734362,15.42858019,149.92,149.91,0.063]
[1745458738770,34.07822905,149.92,149.91,0.063]
[1745458740366,34.22039062,149.92,149.91,0.063]
[1745458743673,34.22039062,149.92,149.91,1e-08]
[1745458749682,44.79181043,149.91,149.86,0.063]
[1745458749877,8.75835608,149.87,149.86,0.063]
[1745458750085,43.7917804,149.87,149.86,0.063]
[1745458750375,63.77685753,149.87,149.86,0.063]
[1745458751076,44.79181043,149.86,149.82,0.063]
[1745458751261,53.40800494,149.83,149.82,0.063]
[1745458751469,73.64223573,149.83,149.82,0.063]
[1745458752181,73.7843973,149.83,149.82,0.063]
[1745458752382,73.7843973,149.83,149.81,0.063]
[1745458752383,18.79181043,149.82,149.81,0.063]
[1745458752592,63.9190191,149.82,149.81,0.063]
[1745458753093,26.0,149.79,149.77,0.063]
[1745458753282,10.09378435,149.78,149.77,0.063]
[1745458753483,30.35024315,149.78,149.77,0.063]
[1745458753873,48.99989201,149.78,149.77,0.063]
[1745458754073,49.14205358,149.78,149.77,0.063]
[1745458758405,18.79181043,149.77,149.68,0.063]
[1745458758612,27.40800494,149.74,149.68,0.063]
[1745458758775,28.74343321,149.74,149.68,8.82135608]
[1745458759691,1.33542827,149.75,149.71,8.75835608]
[1745458759889,1.33542827,149.75,149.72,8.75835608]
[1745458760102,1.33542827,149.75,149.73,8.82135608]
[1745458760401,1.33542827,149.77,149.73,8.82135608]
[1745458760777,1.33542827,149.77,149.74,8.75835608]
[1745458761905,10.09378435,149.77,149.73,0.063]
[1745458762099,8.75835608,149.74,149.73,0.063]
[1745458762399,10.09378435,149.74,149.73,0.063]
[1745458762598,1.33542827,149.74,149.73,0.063]
[1745458762803,16.77202663,149.74,149.73,0.063]
[1745458763492,8.01367055,149.74,149.73,0.063]
[1745458763908,1.33542827,149.74,149.73,0.063]
[1745458768323,8.01367055,149.74,149.73,0.063]
[1745458768609,16.77202663,149.74,149.73,0.063]
[1745458770201,35.42167549,149.74,149.73,0.063]
[1745458772713,8.01367055,149.74,149.73,0.063]
[1745458773712,1.33542827,149.74,149.73,0.063]
[1745458773892,1.33542827,149.77,149.73,8.82135608]
[1745458774090,1.33542827,149.77,149.76,8.75835608]
[1745458774419,1.33542827,149.78,149.76,8.75835608]
[1745458774608,10.28395608,149.82,149.73,61.09642432]
[1745458774803,1.33542827,149.81,149.78,8.75835608]
[1745458775111,1.33542827,149.81,149.79,8.75835608]
[1745458775531,1.33542827,149.82,149.8,8.75835608]
[1745458776111,1.33542827,149.83,149.8,8.75835608]
[1745458776708,14.94542827,149.84,149.81,8.75835608]
[1745458776906,1.36542827,149.84,149.83,8.75835608]
[1745458777091,0.03,149.84,149.83,8.75835608]
[1745458777292,0.03,149.84,149.83,13.7095289]
[1745458780516,0.03,149.84,149.82,13.7095289]
[1745458785327,0.03,149.84,149.79,27.5771]
[1745458785528,0.03,149.84,149.81,13.7095289]
[1745458786522,13.7095289,149.82,149.77,26.0]
[1745458786717,15.04495717,149.81,149.75,1.59]
[1745458786929,13.7095289,149.8,149.75,13.7095289]
[1745458787109,1.33542827,149.79,149.75,13.7095289]
[1745458788605,1.33542827,149.79,149.76,13.7095289]
[1745458788903,1.33542827,149.79,149.77,13.7095289]
[1745458789316,1.33542827,149.79,149.74,26.0]
[1745458789605,6.67608726,149.79,149.75,13.7095289]
[1745458789924,1.33542827,149.78,149.75,13.7095289]
[1745458791539,8.01222193,149.78,149.74,13.7095289]
[1745458791708,13.7095289,149.76,149.73,0.063]
[1745458791909,1.33542827,149.75,149.73,0.063]
[1745458792912,1.33542827,149.77,149.74,13.7095289]
[1745458793831,8.01234368,149.77,149.74,13.7095289]
[1745458794030,1.33542827,149.77,149.75,13.7095289]
[1745458794336,1.33542827,149.79,149.76,13.7095289]
[1745458795032,1.33542827,149.79,149.75,13.7095289]
[1745458796639,8.01159144,149.79,149.75,13.7095289]
[1745458797135,8.01159144,149.79,149.76,13.7095289]
[1745458797526,1.33542827,149.79,149.77,13.7095289]
[1745458797848,13.58,149.82,149.78,13.7095289]
[1745458797849,8.01066002,149.81,149.78,13.7095289]
[1745458798045,8.01066002,149.81,149.77,13.7095289]
[1745458798642,8.01066002,149.81,149.78,13.7095289]
[1745458799145,1.33542827,149.81,149.79,13.7095289]
[1745458799457,14.91542827,149.82,149.8,13.7095289]
[1745458799739,21.59020397,149.82,149.8,13.7095289]
[1745458799919,21.59020397,149.82,149.79,13.7095289]
[1745458800629,13.58,149.82,149.8,13.7095289]
[1745458800828,1.33542827,149.81,149.8,13.7095289]
[1745458801036,1.33542827,149.81,149.79,13.7095289]
[1745458801270,1.33542827,149.81,149.75,6.67757852]
[1745458801271,1.33542827,149.81,149.8,13.7095289]
[1745458801550,1.36542827,149.84,149.8,13.7095289]
[1745458801757,1.36542827,149.84,149.82,13.7095289]
[1745458801922,1.36542827,149.84,149.83,13.7095289]
[1745458802122,0.03,149.84,149.83,13.7095289]
[1745458806364,1.36542827,149.84,149.81,13.7095289]
[1745458807261,0.03,149.84,149.81,13.7095289]
[1745458807449,1.33542827,149.83,149.81,13.7095289]
[1745458807652,1.33542827,149.83,149.8,13.7095289]
[1745458807850,1.33542827,149.83,149.81,13.7095289]
[1745458808051,8.01006411,149.83,149.8,13.7095289]
[1745458808447,1.33542827,149.83,149.81,13.7095289]
[1745458808856,1.33542827,149.83,149.8,13.7095289]
[1745458809041,8.00975235,149.83,149.8,13.7095289]
[1745458809351,8.00975235,149.83,149.79,13.7095289]
[1745458810143,8.00975235,149.83,149.8,13.7095289]
[1745458810964,8.00975235,149.83,149.79,13.7095289]
[1745458812366,8.00975235,149.83,149.77,26.0]
[1745458812669,8.00975235,149.83,149.79,13.7095289]
[1745458815874,8.00975235,149.83,149.77,26.0]
[1745458816067,8.00975235,149.83,149.8,13.7095289]
[1745458818268,21.71928125,149.83,149.78,13.7095289]
[1745458818465,13.7095289,149.82,149.77,13.7095289]
[1745458818772,1.33542827,149.81,149.77,13.7095289]
[1745458819173,15.04495717,149.81,149.77,13.7095289]
[1745458819376,6.67556742,149.8,149.77,8.78109292]
[1745458819578,1.33542827,149.79,149.78,8.78109292]
[1745458820176,1.33542827,149.79,149.77,8.78109292]
[1745458821277,1.33542827,149.79,149.77,13.72039655]
[1745458821972,8.01144305,149.79,149.77,13.72039655]
[1745458822178,13.72039655,149.78,149.73,0.063]
[1745458822481,13.72039655,149.76,149.73,0.063]
[1745458822664,1.33542827,149.75,149.73,0.063]
[1745458823261,6.67824228,149.74,149.73,0.063]
[1745458824655,8.0123801,149.77,149.73,13.78339655]
[1745458824851,15.07542827,149.78,149.76,13.72039655]
[1745458825058,21.75198222,149.78,149.75,13.72039655]
[1745458825257,21.75198222,149.78,149.74,13.72039655]
[1745458825471,21.75198222,149.78,149.75,13.72039655]
[1745458828080,13.72039655,149.77,149.73,0.063]
[1745458828386,1.33542827,149.76,149.73,0.063]
[1745458829071,6.67779632,149.75,149.73,0.063]
[1745458829270,1.33542827,149.74,149.73,0.063]
[1745458830180,15.05582482,149.74,149.73,0.063]
[1745458831494,8.01367055,149.74,149.73,0.063]
[1745458831695,1.33542827,149.75,149.73,13.78339655]
[1745458831866,8.01277869,149.76,149.73,13.78339655]
[1745458832066,21.73317524,149.76,149.73,0.063]
[1745458832769,13.72039655,149.75,149.73,0.063]
[1745458833089,1.33542827,149.74,149.73,0.063]
[1745458833888,8.01347344,149.75,149.73,0.063]
[1745458837196,8.01333211,149.75,149.73,0.063]
[1745458838684,21.73372866,149.75,149.73,0.063]
[1745458841303,32.37004541,149.74,149.73,0.063]
[1745458841472,32.51220698,149.74,149.73,0.063]
[1745458843311,39.19044926,149.74,149.73,0.063]
[1745458847713,20.39863883,149.74,149.73,0.063]
[1745458848820,34.07863883,149.74,149.73,0.063]
[1745458850087,20.35824228,149.74,149.73,0.063]
[1745458850288,13.68,149.74,149.73,0.063]
[1745458850493,20.35824228,149.74,149.73,0.063]
[1745458853221,29.14690991,149.74,149.73,0.063]
[1745458860029,47.79655877,149.74,149.73,0.063]
[1745458860710,49.27414861,149.74,149.73,0.063]
[1745458863524,21.69367055,149.74,149.73,0.063]
[1745458863733,20.35824228,149.74,149.73,0.063]
[1745458863910,21.69367055,149.74,149.73,0.063]
[1745458864743,30.48233818,149.74,149.73,0.063]
[1745458865618,21.69367055,149.74,149.73,0.063]
[1745458867337,15.01542827,149.74,149.73,0.063]
[1745458867516,1.33542827,149.77,149.73,8.85166763]
[1745458867838,1.33542827,149.77,149.75,8.78866763]
[1745458868041,1.33542827,149.78,149.76,8.78866763]
[1745458868213,14.95542827,149.79,149.76,8.78866763]
[1745458869107,13.62,149.79,149.76,8.78866763]
[1745458869333,20.29608922,149.79,149.76,8.78866763]
[1745458869540,1.33542827,149.78,149.76,8.78866763]
[1745458870031,20.29608922,149.79,149.76,8.78866763]
[1745458872036,1.33542827,149.78,149.76,8.78866763]
[1745458872241,20.29608922,149.79,149.76,8.78866763]
[1745458873033,1.33542827,149.78,149.76,8.78866763]
[1745458873232,1.33542827,149.78,149.75,8.78866763]
[1745458875041,6.67690458,149.77,149.75,8.78866763]
[1745458877635,10.1240959,149.76,149.73,0.063]
[1745458877838,8.78866763,149.74,149.73,0.063]
[1745458880143,15.46690991,149.74,149.73,0.063]
[1745458882038,6.67824228,149.74,149.73,0.063]
[1745458882645,6.67784313,149.75,149.73,0.063]
[1745458882851,1.33542827,149.74,149.73,0.063]
[1745458883827,8.0132714,149.75,149.73,0.063]
[1745458884027,1.33542827,149.76,149.73,8.85166763]
[1745458884327,1.33542827,149.78,149.75,8.78866763]
[1745458884537,13.62,149.79,149.77,8.78866763]
[1745458884752,1.33542827,149.8,149.78,8.78866763]
[1745458885437,8.01109715,149.8,149.78,8.78866763]
[1745458885626,6.67566888,149.8,149.78,8.78866763]
[1745458886230,1.36542827,149.82,149.79,8.78866763]
[1745458886434,1.36542827,149.82,149.8,8.78866763]
[1745458887222,1.36542827,149.82,149.8,13.71491387]
[1745458887628,8.04025056,149.82,149.79,13.71491387]
[1745458888555,8.04025056,149.82,149.78,13.71491387]
[1745458889439,8.04025056,149.82,149.79,13.71491387]
[1745458891435,1.36542827,149.82,149.79,13.71491387]
[1745458892259,8.04017001,149.82,149.79,13.71491387]
[1745458893143,0.03,149.82,149.79,13.71491387]
[1745458893956,0.03,149.82,149.81,13.71491387]
[1745458898347,0.03,149.82,149.79,13.71491387]
[1745458901368,0.03,149.82,149.8,13.71491387]
[1745458904567,1.36542827,149.82,149.78,13.71491387]
[1745458906446,8.04053222,149.82,149.78,13.71491387]
[1745458907279,16.82095052,149.82,149.77,8.7804183]
[1745458907448,8.7804183,149.81,149.76,8.7804183]
[1745458907647,1.33542827,149.8,149.76,8.7804183]
[1745458908560,6.67601308,149.79,149.75,10.4180183]
[1745458908763,1.33542827,149.8,149.76,8.7804183]
[1745458908764,8.01109715,149.8,149.76,8.7804183]
[1745458911074,8.01109715,149.8,149.74,6.5092]
[1745458911278,8.01109715,149.8,149.76,8.7804183]
[1745458911679,16.79151545,149.8,149.75,8.7804183]
[1745458912858,0.03,149.82,149.79,8.7804183]
[1745458913072,0.03,149.82,149.8,8.7804183]
[1745458913289,6.70478214,149.82,149.8,8.7804183]
[1745458913458,6.70478214,149.82,149.79,8.7804183]
[1745458914884,10.11584657,149.81,149.74,7.98638875]
[1745458915066,10.11584657,149.81,149.76,8.7804183]
[1745458916083,8.01084739,149.81,149.77,8.7804183]
[1745458918377,16.79126569,149.81,149.76,8.7804183]
[1745458919384,8.7804183,149.8,149.75,8.7804183]
[1745458919587,1.33542827,149.79,149.75,8.7804183]
[1745458920783,1.33542827,149.79,149.73,26.063]
[1745458920993,6.6764588,149.78,149.73,34.8434183]
[1745458921302,1.33542827,149.77,149.73,0.063]
[1745458921471,8.7804183,149.74,149.73,0.063]
[1745458922676,8.7804183,149.76,149.73,0.063]
[1745458922889,1.33542827,149.75,149.73,0.063]
[1745458923187,8.01364943,149.75,149.73,0.063]
[1745458923370,16.79406773,149.75,149.73,0.063]
[1745458923888,1.33542827,149.75,149.73,0.063]
[1745458924074,13.58,149.77,149.74,8.7804183]
[1745458924274,21.59234705,149.77,149.73,8.8434183]
[1745458925984,20.25691878,149.77,149.73,8.8434183]
[1745458926181,13.58,149.77,149.74,8.7804183]
[1745458926380,13.58,149.77,149.75,8.7804183]
[1745458926578,8.01199514,149.78,149.74,8.7804183]
[1745458926870,8.01153003,149.79,149.75,8.7804183]
[1745458928405,8.01153003,149.79,149.73,8.36551569]
[1745458928591,8.01153003,149.79,149.75,8.7804183]
[1745458929377,8.01116294,149.8,149.76,8.7804183]
[1745458929773,16.79158124,149.8,149.76,8.7804183]
[1745458929974,8.7804183,149.79,149.75,8.7804183]
[1745458930194,16.79158124,149.8,149.75,8.7804183]
[1745458931501,8.7804183,149.79,149.74,8.7804183]
[1745458931793,1.33542827,149.78,149.74,8.7804183]
[1745458931998,10.11584657,149.78,149.73,0.063]
[1745458932203,8.7804183,149.76,149.73,0.063]
[1745458932719,8.7804183,149.77,149.73,0.063]
[1745458933019,1.33542827,149.76,149.73,0.063]
[1745458933221,8.01308121,149.76,149.73,0.063]
[1745458941219,8.01308121,149.76,149.74,8.7804183]
[1745458941522,1.33542827,149.76,149.74,8.7804183]
[1745458941705,8.01233285,149.77,149.74,8.7804183]
[1745458944418,16.79275115,149.77,149.73,0.063]
[1745458944618,16.79275115,149.77,149.73,8.8434183]
[1745458947098,8.7804183,149.74,149.73,0.063]
[1745458949011,10.11584657,149.75,149.73,0.063]
[1745458949829,6.67824228,149.74,149.73,0.063]
[1745458950329,8.01337341,149.75,149.73,0.063]
[1745458950831,16.79379171,149.75,149.73,0.063]
[1745458951810,15.45866058,149.74,149.73,0.063]
[1745458953229,6.67824228,149.74,149.73,0.063]
[1745458958946,15.45866058,149.74,149.73,0.063]
[1745458959935,6.67824228,149.74,149.73,0.063]
[1745458967840,15.45866058,149.74,149.73,0.063]
[1745458972241,18.64964886,149.73,149.7,0.063]
[1745458972447,8.7804183,149.71,149.7,0.063]
[1745458972640,10.11584657,149.72,149.7,0.063]
[1745458973967,6.67958052,149.71,149.7,0.063]
[1745458974951,8.01468644,149.72,149.7,0.063]
[1745458975127,6.67925817,149.72,149.7,0.063]
[1745458975327,8.01412484,149.73,149.7,0.063]
[1745458975527,6.67869657,149.73,149.7,8.8434183]
[1745458976152,13.58,149.76,149.72,8.7804183]
[1745458976361,21.59291385,149.76,149.73,8.7804183]
[1745458976551,20.25748558,149.76,149.73,8.7804183]
[1745458977233,20.25748558,149.76,149.72,8.7804183]
[1745458977433,29.03790388,149.76,149.71,8.7804183]
[1745458979352,29.03790388,149.76,149.7,8.31869618]
[1745458979657,20.25748558,149.76,149.72,8.7804183]
[1745458980554,29.03790388,149.76,149.71,8.7804183]
[1745458982064,20.25748558,149.76,149.72,8.7804183]
[1745458983771,13.58,149.76,149.73,8.7804183]
[1745458983945,2.99322827,149.79,149.75,8.7804183]
[1745458983946,1.33542827,149.79,149.75,8.7804183]
[1745458984258,10.11584657,149.8,149.76,8.7804183]
[1745458984759,10.11584657,149.8,149.75,8.7804183]
[1745458985140,6.67618251,149.79,149.75,8.7804183]
[1745458986161,6.67566161,149.8,149.77,8.7804183]
[1745458988537,6.67566161,149.8,149.73,36.45693533]
[1745458988754,15.45607991,149.8,149.73,1.33526213]
[1745458989061,15.45607991,149.8,149.76,8.7804183]
[1745458990558,8.7804183,149.79,149.74,8.7804183]
[1745458990756,8.7804183,149.78,149.73,8.7804183]
[1745458991764,6.67690458,149.77,149.73,8.7804183]
[1745458992564,6.67690458,149.77,149.74,8.7804183]
[1745458992865,6.6765001,149.78,149.74,8.7804183]
[1745458993066,6.67574964,149.8,149.77,8.7804183]
[1745458993265,0.03,149.82,149.79,8.7804183]
[1745458993449,0.03,149.82,149.8,8.7804183]
[1745458993648,0.03,149.82,149.79,8.7804183]
[1745458994154,0.03,149.82,149.76,7.887]
[1745458994346,8.8104183,149.82,149.77,8.7804183]
[1745458994545,0.03,149.82,149.78,8.7804183]
[1745458994744,8.8104183,149.82,149.78,8.7804183]
[1745458995067,0.03,149.82,149.8,8.7804183]
[1745458995448,0.03,149.82,149.81,8.7804183]
[1745458997970,0.03,149.82,149.81,35.83905055]
[1745458998176,0.03,149.82,149.81,42.25835055]
[1745458998376,0.03,149.83,149.82,18.79181043]
[1745458998562,0.03,149.83,149.82,28.90647617]
[1745458998878,0.03,149.83,149.82,54.90647617]
[1745458999875,0.03,149.83,149.82,61.58115244]
[1745459006350,0.03,149.83,149.82,42.93150358]
[1745459006557,0.03,149.83,149.82,16.93150358]
[1745459007288,0.03,149.83,149.82,10.11466574]
[1745459007778,0.03,149.83,149.82,16.78934201]
[1745459009674,0.03,149.83,149.82,10.11466574]
[1745459010871,8.8104183,149.83,149.78,1.33461427]
[1745459011063,8.7804183,149.82,149.78,8.7804183]
[1745459011957,15.45521021,149.82,149.77,8.7804183]
[1745459012156,10.11584657,149.81,149.73,26.30204886]
[1745459012479,8.7804183,149.8,149.75,8.7804183]
[1745459013288,15.45617279,149.8,149.75,8.7804183]
[1745459016673,6.67575449,149.8,149.76,8.7804183]
[1745459016979,8.7804183,149.79,149.74,34.7804183]
[1745459017282,8.7804183,149.78,149.74,26.0]
[1745459017889,8.7804183,149.79,149.74,34.7804183]
[1745459018996,15.45668442,149.79,149.74,34.7804183]
[1745459020883,6.67626612,149.79,149.75,8.7804183]
[1745459021068,8.01169439,149.79,149.75,8.7804183]
[1745459022268,16.79211269,149.79,149.74,34.7804183]
[1745459023091,16.79211269,149.79,149.74,8.7804183]
[1745459023996,8.01169439,149.79,149.75,8.7804183]
[1745459024598,1.33542827,149.79,149.75,8.7804183]
[1745459025089,10.11584657,149.81,149.76,8.7804183]
[1745459026900,16.79128385,149.81,149.76,8.7804183]
[1745459027891,8.01086555,149.81,149.76,8.7804183]
[1745459028280,16.79128385,149.81,149.76,8.7804183]
[1745459029697,8.7804183,149.79,149.74,8.7804183]
[1745459029880,10.11584657,149.78,149.73,34.7804183]
[1745459030270,8.7804183,149.77,149.72,8.7804183]
[1745459030476,1.33542827,149.78,149.72,8.7804183]
[1745459030675,10.11584657,149.78,149.73,8.7804183]
[1745459031801,16.79273895,149.78,149.73,8.7804183]
[1745459033393,8.7804183,149.76,149.72,8.7804183]
[1745459033601,10.11584657,149.75,149.7,8.8434183]
[1745459033794,16.79396855,149.75,149.7,8.8434183]
[1745459034996,8.01355025,149.75,149.71,8.7804183]
[1745459035407,1.33542827,149.75,149.71,8.7804183]
[1745459042118,1.33542827,149.75,149.73,8.7804183]
[1745459042289,13.56,149.78,149.74,8.7804183]
[1745459042616,13.56,149.78,149.71,6.6795127]
[1745459042617,13.56,149.78,149.75,8.7804183]
[1745459043585,1.6182,149.81,149.77,8.7804183]
[1745459043785,31.52712923,149.83,149.8,8.7804183]
[1745459043786,6.70438037,149.83,149.8,8.7804183]
[1745459043989,8.03980864,149.83,149.79,8.7804183]
[1745459044190,8.7804183,149.82,149.77,8.7804183]
[1745459044410,1.33542827,149.81,149.77,8.7804183]
[1745459045021,10.11584657,149.81,149.74,8.01328562]
[1745459045191,10.11584657,149.81,149.76,8.7804183]
[1745459045609,1.33542827,149.81,149.77,8.7804183]
[1745459046604,8.01064175,149.81,149.77,8.7804183]
[1745459046910,6.67521348,149.81,149.77,8.7804183]
[1745459047121,16.7906655,149.82,149.77,8.7804183]
[1745459047819,8.7804183,149.81,149.76,8.7804183]
[1745459048122,16.79141399,149.8,149.75,8.7804183]